fUST/lending_fUST_20240902
["ID","MTS","AMOUNT","RATE_DAILY","PERIOD"]
[336874310,1725223854330,-500.0,0.00025205,2]
[336874311,1725223854339,-820.8,0.00025205,2]
[336874312,1725223854349,-500.0,0.00025205,2]
[336874313,1725223854359,-500.0,0.00025205,2]
[336874314,1725223854368,-500.0,0.00025205,2]
[336874315,1725223854378,-500.0,0.00025205,2]
[336874316,1725223854387,-3105.86,0.00025205,2]
[336874317,1725223854397,-16034.01,0.00025205,2]
[336874318,1725223854406,-500.0,0.00025205,2]
[336874319,1725223854415,-500.0,0.00025205,2]
[336874320,1725223854425,-1823.49,0.00025205,2]
[336874321,1725223854434,-500.0,0.00025205,2]
[336874322,1725223854443,-3330.89,0.00025205,2]
[336874323,1725223854453,-702.11,0.00025205,2]
[336874324,1725223854462,-500.0,0.00025205,2]
[336874325,1725223854472,-774.2,0.00025205,2]
[336874326,1725223854481,-2034.21,0.00025205,2]
[336874327,1725223854491,-324.27186465,0.00025205,2]
[336874328,1725223854500,-688.01,0.00025205,2]
[336874329,1725223854509,-500.0,0.00025205,2]
[336874330,1725223854519,-500.0,0.00025205,2]
[336874331,1725223854529,-500.0,0.00025205,2]
[336874332,1725223854538,-500.0,0.00025205,2]
[336874333,1725223854547,-512.17694907,0.00025205,2]
[336874334,1725223854557,-500.0,0.00025205,2]
[336874335,1725223854566,-1630.76,0.00025205,2]
[336874336,1725223854575,-500.0,0.00025205,2]
[336874337,1725223854585,-500.0,0.00025205,2]
[336874338,1725223854594,-2401.53,0.00025205,2]
[336874339,1725223854604,-500.0,0.00025205,2]
[336874340,1725223854613,-500.0,0.00025205,2]
[336874341,1725223854622,-500.0,0.00025205,2]
[336874342,1725223854632,-3166.18,0.00025205,2]
[336874343,1725223854642,-500.0,0.00025205,2]
[336874344,1725223854651,-500.0,0.00025205,2]
[336874345,1725223854662,-500.0,0.00025205,2]
[336874346,1725223854671,-2460.92,0.00025205,2]
[336874347,1725223854680,-739.16,0.00025205,2]
[336874348,1725223854689,-1473.95,0.00025205,2]
[336874349,1725223854699,-530.57,0.00025205,2]
[336874350,1725223854708,-1088.52,0.00025205,2]
[336874351,1725223854718,-500.0,0.00025205,2]
[336874352,1725223854727,-872.59,0.00025205,2]
[336874353,1725223854737,-500.0,0.00025205,2]
[336874354,1725223854746,-500.0,0.00025205,2]
[336874355,1725223854755,-500.0,0.00025205,2]
[336874356,1725223854764,-769.13,0.00025205,2]
[336874357,1725223854773,-875.11,0.00025205,2]
[336874358,1725223854783,-500.0,0.00025205,2]
[336874359,1725223854792,-500.0,0.00025205,2]
[336874360,1725223854801,-500.0,0.00025205,2]
[336874361,1725223854810,-500.0,0.00025205,2]
[336874362,1725223854820,-500.0,0.00025205,2]
[336874363,1725223854829,-500.0,0.00025205,2]
[336874364,1725223854839,-758.04,0.00025205,2]
[336874365,1725223854848,-500.0,0.00025205,2]
[336874366,1725223854857,-1729.93,0.00025205,2]
[336874367,1725223854866,-1436.26,0.00025205,2]
[336874368,1725223854876,-500.0,0.00025205,2]
[336874369,1725223854886,-500.0,0.00025205,2]
[336874370,1725223854895,-500.0,0.00025205,2]
[336874371,1725223854905,-500.0,0.00025205,2]
[336874372,1725223854915,-500.0,0.00025205,2]
[336874373,1725223854923,-1599.02,0.00025205,2]
[336874374,1725223854933,-500.0,0.00025205,2]
[336874375,1725223854943,-500.0,0.00025205,2]
[336874376,1725223854952,-500.0,0.00025205,2]
[336874377,1725223854962,-510.18,0.00025205,2]
[336874378,1725223854971,-500.0,0.00025205,2]
[336874379,1725223854980,-509.6084453,0.00025205,2]
[336874380,1725223854991,-500.0,0.00025205,2]
[336874381,1725223855002,-500.0,0.00025205,2]
[336874382,1725223855012,-1077.65,0.00025205,2]
[336874383,1725223855023,-1557.02,0.00025205,2]
[336874384,1725223855033,-500.0,0.00025205,2]
[336874385,1725223855044,-1766.48,0.00025205,2]
[336874386,1725223855054,-521.69064609,0.00025205,2]
[336874387,1725223855064,-500.0,0.00025205,2]
[336874388,1725223855076,-500.0,0.00025205,2]
[336874389,1725223855087,-500.0,0.00025205,2]
[336874390,1725223855096,-500.0,0.00025205,2]
[336874391,1725223855106,-151.0,0.00025205,7]
[336874392,1725223855116,-1902.23,0.00025205,2]
[336874393,1725223855127,-1804.34,0.00025205,2]
[336874394,1725223855138,-1766.03,0.00025205,2]
[336874395,1725223855148,-828.02,0.00025205,2]
[336874396,1725223855162,-534.74,0.00025205,2]
[336874397,1725223855172,-500.0,0.00025205,2]
[336874398,1725223855182,-500.0,0.00025205,2]
[336874399,1725223855191,-2655.44,0.00025205,2]
[336874400,1725223855200,-1138.98,0.00025205,2]
[336874401,1725223855209,-699.26,0.00025205,2]
[336874402,1725223855219,-501.9532307,0.00025205,2]
[336874403,1725223855228,-780.1,0.00025205,2]
[336874404,1725223855238,-1173.36,0.00025205,2]
[336874405,1725223855247,-500.0,0.00025205,2]
[336874406,1725223855257,-537.76895376,0.00025205,2]
[336874407,1725223855267,-500.0,0.00025205,2]
[336874408,1725223855280,-568.92,0.00025205,2]
[336874409,1725223855292,-735.61,0.00025205,2]
[336874410,1725223855301,-1348.36,0.00025205,2]
[336874411,1725223855311,-760.32,0.00025205,2]
[336874412,1725223855320,-777.07,0.00025205,2]
[336874413,1725223855331,-771.88,0.00025205,2]
[336874414,1725223855340,-8163.45,0.00025205,2]
[336874415,1725223855349,-500.0,0.00025205,2]
[336874416,1725223855358,-6057.72,0.00025205,2]
[336874417,1725223855368,-500.0,0.00025205,2]
[336874418,1725223855378,-1347.97,0.00025205,2]
[336874419,1725223855387,-1161.77,0.00025205,2]
[336874420,1725223855397,-1624.73,0.00025205,2]
[336874421,1725223855407,-1593.98,0.00025205,2]
[336874422,1725223855416,-500.0,0.00025205,2]
[336874423,1725223855426,-3271.16,0.00025205,2]
[336874424,1725223855435,-1778.2,0.00025205,2]
[336874425,1725223855444,-1839.62,0.00025205,2]
[336874426,1725223855455,-500.0,0.00025205,2]
[336874427,1725223855464,-500.0,0.00025205,2]
[336874428,1725223855474,-500.0,0.00025205,2]
[336874429,1725223855483,-500.0,0.00025205,2]
[336874430,1725223855493,-414.72557276,0.00025205,2]
[336874431,1725223855502,-500.0,0.00025205,2]
[336874432,1725223855513,-1500.55,0.00025205,2]
[336874433,1725223855522,-550.76,0.00025205,2]
[336874434,1725223855531,-623.65,0.00025205,2]
[336874435,1725223855540,-500.0,0.00025205,2]
[336874436,1725223855550,-500.0,0.00025205,2]
[336874437,1725223855559,-2093.63,0.00025205,2]
[336874438,1725223855568,-733.28,0.00025205,2]
[336874439,1725223855578,-500.0,0.00025205,2]
[336874440,1725223855587,-2283.29,0.00025205,2]
[336874441,1725223855597,-502.16297863,0.00025205,2]
[336874442,1725223855607,-1450.66,0.00025205,2]
[336874443,1725223855616,-1204.89,0.00025205,2]
[336874444,1725223855626,-1579.86,0.00025205,2]
[336874445,1725223855635,-500.0,0.00025205,2]
[336874446,1725223855645,-500.0,0.00025205,2]
[336874447,1725223855654,-1439.73,0.00025205,2]
[336874448,1725223855664,-3000.0,0.0002521,2]
[336874449,1725223855673,-3000.0,0.0002522,2]
[336874450,1725223855682,-1000.0,0.00025221,2]
[336874451,1725223855691,-3000.0,0.0002523,2]
[336874452,1725223855700,-3000.0,0.0002524,2]
[336874453,1725223855711,-3000.0,0.0002525,2]
[336874454,1725223855720,-3000.0,0.0002526,2]
[336874455,1725223855729,-5196.25171994,0.00025262,2]
[336874456,1725223855739,-3000.0,0.0002527,2]
[336874457,1725223855748,-150.0,0.00025273,2]
[336874458,1725223855758,-3000.0,0.0002528,2]
[336874459,1725223855769,-3000.0,0.0002529,2]
[336874460,1725223855781,-153.0,0.00025299,2]
[336874461,1725223855791,-153.0,0.00025299,2]
[336874462,1725223855801,-153.0,0.00025299,2]
[336874463,1725223855811,-150.112233,0.000253,6]
[336874464,1725223855820,-3000.0,0.000253,2]
[336874465,1725223855830,-153.71,0.000253,7]
[336874466,1725223855840,-154.68,0.000253,7]
[336874467,1725223855851,-3000.0,0.0002531,2]
[336874468,1725223855860,-3000.0,0.0002532,2]
[336874469,1725223855870,-3000.0,0.0002533,2]
[336874470,1725223855879,-3000.0,0.0002534,2]
[336874471,1725223855889,-3000.0,0.0002535,2]
[336874472,1725223855898,-3000.0,0.0002536,2]
[336874473,1725223855908,-97589.09937481,0.00025369,2]
[336874474,1725223856354,-315.57048563,0.00024557,2]
[336874475,1725223856363,-500.0,0.00024657,2]
[336874476,1725223856372,-500.0,0.00024657,2]
[336874477,1725223856382,-500.0,0.00024931,2]
[336874478,1725223856392,-500.0,0.00025205,2]
[336874479,1725223856401,-28230.90152881,0.00025369,2]
[336874480,1725224115103,158.0,0.0002493,120]
[336874481,1725224115800,158.0,0.0002492,120]
[336874482,1725224116348,158.0,0.0002491,120]
[336874484,1725224379423,162.230707,0.00014247,2]
[336874487,1725224837425,-250.53490309,0.00023384,2]
[336874488,1725224849463,-49.46509691,0.00023384,2]
[336874489,1725224849489,-197.16926228,0.00023384,2]
[336874490,1725224888416,158.797453,0.00014247,2]
[336874507,1725225032294,-399.14,0.00023071,2]
[336874509,1725225032304,-234.11,0.00023384,2]
[336874562,1725225038503,-65.89,0.00023384,2]
[336874564,1725225038513,-17835.90587639,0.00023414,2]
[336874565,1725225038613,-366.99479238,0.00023414,2]
[336874566,1725225038624,-6697.09933123,0.00023414,2]
[336874567,1725225038634,-159.568609,0.00023653,2]
[336874568,1725225038643,-365.367777,0.00023836,2]
[336874569,1725225038652,-162.230707,0.00024475,2]
[336874570,1725225038661,-153.0,0.000245,2]
[336874571,1725225038670,-153.0,0.000245,2]
[336874572,1725225038679,-1531.28453009,0.00024556,2]
[336874573,1725225038689,-252.45638852,0.00024557,2]
[336874574,1725225038698,-153.0,0.000246,2]
[336874575,1725225038708,-318.90807339,0.00024647,3]
[336874576,1725225038718,-500.0,0.00024656,2]
[336874577,1725225038727,-500.0,0.00024656,2]
[336874578,1725225038737,-500.0,0.00024656,2]
[336874579,1725225038746,-500.0,0.00024656,2]
[336874580,1725225038755,-500.0,0.00024656,2]
[336874581,1725225038764,-500.0,0.00024656,2]
[336874582,1725225038773,-490.83834541,0.00024656,2]
[336874583,1725225038783,-500.0,0.00024656,2]
[336874584,1725225038792,-500.0,0.00024656,2]
[336874585,1725225038802,-472.99812073,0.00024657,2]
[336874586,1725225038811,-500.0,0.00024657,2]
[336874587,1725225038821,-500.0,0.00024657,2]
[336874588,1725225038830,-332.55119175,0.00024657,2]
[336874589,1725225038839,-500.0,0.00024657,2]
[336874590,1725225038849,-500.0,0.00024657,2]
[336874591,1725225038858,-500.0,0.00024657,2]
[336874592,1725225038868,-500.0,0.00024657,2]
[336874593,1725225038878,-500.0,0.00024657,2]
[336874594,1725225038887,-500.0,0.00024657,2]
[336874595,1725225038896,-500.0,0.00024657,2]
[336874596,1725225038906,-500.0,0.00024657,2]
[336874597,1725225038916,-500.0,0.00024657,2]
[336874598,1725225038925,-500.0,0.00024657,2]
[336874599,1725225038935,-500.0,0.00024657,2]
[336874600,1725225038944,-500.0,0.00024657,2]
[336874601,1725225038953,-500.0,0.00024657,2]
[336874602,1725225038964,-500.0,0.00024657,2]
[336874603,1725225038974,-500.0,0.00024657,2]
[336874604,1725225038982,-500.0,0.00024657,2]
[336874605,1725225038991,-500.0,0.00024657,2]
[336874606,1725225039000,-503.56710317,0.00024657,2]
[336874607,1725225039010,-500.0,0.00024657,2]
[336874608,1725225039019,-500.0,0.00024657,2]
[336874609,1725225039028,-502.93525691,0.00024657,2]
[336874610,1725225039038,-500.0,0.00024657,2]
[336874611,1725225039047,-500.0,0.00024657,2]
[336874612,1725225039056,-500.0,0.00024657,2]
[336874613,1725225039065,-500.0,0.00024657,2]
[336874614,1725225039075,-500.0,0.00024657,2]
[336874615,1725225039084,-290.23250147,0.00024657,2]
[336874616,1725225039094,-758.67,0.00024657,2]
[336874617,1725225039102,-500.0,0.00024657,2]
[336874618,1725225039112,-500.0,0.00024657,2]
[336874619,1725225039121,-500.0,0.00024657,2]
[336874620,1725225039130,-500.0,0.00024657,2]
[336874621,1725225039140,-500.0,0.00024657,2]
[336874622,1725225039149,-500.0,0.00024657,2]
[336874623,1725225039159,-306.81856574,0.00024657,2]
[336874624,1725225039168,-500.0,0.00024657,2]
[336874625,1725225039177,-500.0,0.00024657,2]
[336874626,1725225039187,-500.0,0.00024657,2]
[336874627,1725225039197,-500.0,0.00024657,2]
[336874628,1725225039207,-500.0,0.00024657,2]
[336874629,1725225039216,-500.0,0.00024657,2]
[336874630,1725225039226,-500.0,0.00024657,2]
[336874631,1725225039235,-500.0,0.00024657,2]
[336874632,1725225039246,-500.0,0.00024657,2]
[336874633,1725225039255,-500.0,0.00024657,2]
[336874634,1725225039266,-500.0,0.00024657,2]
[336874635,1725225039274,-500.0,0.00024657,2]
[336874636,1725225039284,-270.28823137,0.00024657,2]
[336874637,1725225039293,-500.0,0.00024657,2]
[336874638,1725225039303,-500.0,0.00024657,2]
[336874639,1725225039312,-500.0,0.00024657,2]
[336874640,1725225039322,-500.0,0.00024657,2]
[336874641,1725225039331,-500.0,0.00024657,2]
[336874642,1725225039341,-536.3871627,0.00024657,2]
[336874643,1725225039351,-604.01,0.00024657,2]
[336874644,1725225039359,-500.0,0.00024657,2]
[336874645,1725225039369,-500.0,0.00024657,2]
[336874646,1725225039378,-500.0,0.00024657,2]
[336874647,1725225039387,-500.0,0.00024657,2]
[336874648,1725225039397,-500.0,0.00024657,2]
[336874649,1725225039406,-500.0,0.00024657,2]
[336874650,1725225039415,-503.48,0.00024657,2]
[336874651,1725225039431,-502.63088586,0.00024657,2]
[336874652,1725225039441,-500.0,0.00024657,2]
[336874653,1725225039450,-500.0,0.00024657,2]
[336874654,1725225039459,-500.0,0.00024657,2]
[336874655,1725225039469,-500.0,0.00024657,2]
[336874656,1725225039479,-500.0,0.00024657,2]
[336874657,1725225039488,-500.0,0.00024657,2]
[336874658,1725225039500,-500.0,0.00024657,2]
[336874659,1725225039510,-500.0,0.00024657,2]
[336874660,1725225039521,-500.0,0.00024657,2]
[336874661,1725225039531,-500.0,0.00024657,2]
[336874662,1725225039541,-614.59,0.00024657,2]
[336874663,1725225039550,-553.72,0.00024657,2]
[336874664,1725225039559,-500.0,0.00024657,2]
[336874665,1725225039568,-500.0,0.00024657,2]
[336874666,1725225039578,-500.0,0.00024657,2]
[336874667,1725225039587,-500.0,0.00024657,2]
[336874668,1725225039598,-500.0,0.00024657,2]
[336874669,1725225039608,-502.05045916,0.00024657,2]
[336874670,1725225039617,-500.0,0.00024657,2]
[336874671,1725225039627,-500.0,0.00024657,2]
[336874672,1725225039636,-500.0,0.00024657,2]
[336874673,1725225039647,-500.0,0.00024657,2]
[336874674,1725225039657,-500.0,0.00024657,2]
[336874675,1725225039667,-500.0,0.00024657,2]
[336874676,1725225039676,-500.0,0.00024657,2]
[336874677,1725225039685,-630.32934669,0.00024657,2]
[336874678,1725225039695,-500.0,0.00024657,2]
[336874679,1725225039704,-500.0,0.00024657,2]
[336874680,1725225039713,-742.64,0.00024657,2]
[336874681,1725225039722,-565.48646795,0.00024657,2]
[336874682,1725225039732,-500.0,0.00024657,2]
[336874683,1725225039741,-500.0,0.00024657,2]
[336874684,1725225039751,-500.0,0.00024657,2]
[336874685,1725225039761,-1329.77,0.00024657,2]
[336874686,1725225039770,-520.33,0.00024657,2]
[336874687,1725225039779,-500.0,0.00024657,2]
[336874688,1725225039789,-502.33822911,0.00024657,2]
[336874689,1725225039799,-926.31,0.00024657,2]
[336874690,1725225039808,-500.0,0.00024657,2]
[336874691,1725225039819,-708.32,0.00024657,2]
[336874692,1725225039832,-500.0,0.00024657,2]
[336874693,1725225039843,-516.44415558,0.00024657,2]
[336874694,1725225039855,-500.0,0.00024657,2]
[336874695,1725225039865,-524.54605929,0.00024657,2]
[336874696,1725225039875,-1060.85,0.00024657,2]
[336874697,1725225039885,-500.0,0.00024657,2]
[336874698,1725225039895,-500.0,0.00024657,2]
[336874699,1725225039904,-510.35,0.00024657,2]
[336874700,1725225039914,-500.0,0.00024657,2]
[336874701,1725225039925,-500.0,0.00024657,2]
[336874703,1725225039935,-787.74,0.00024657,2]
[336874704,1725225039947,-500.0,0.00024657,2]
[336874705,1725225039957,-500.0,0.00024657,2]
[336874706,1725225039967,-500.0,0.00024657,2]
[336874707,1725225039976,-507.05321203,0.00024657,2]
[336874708,1725225039986,-500.0,0.00024657,2]
[336874709,1725225039995,-500.0,0.00024657,2]
[336874710,1725225040005,-500.0,0.00024657,2]
[336874711,1725225040014,-500.0,0.00024657,2]
[336874712,1725225040024,-500.0,0.00024657,2]
[336874713,1725225040034,-500.0,0.00024657,2]
[336874714,1725225040044,-500.0,0.00024657,2]
[336874715,1725225040055,-500.0,0.00024657,2]
[336874716,1725225040065,-500.0,0.00024657,2]
[336874717,1725225040075,-500.0,0.00024657,2]
[336874718,1725225040084,-500.0,0.00024657,2]
[336874719,1725225040097,-500.0,0.00024657,2]
[336874720,1725225040108,-500.0,0.00024657,2]
[336874721,1725225040118,-500.0,0.00024657,2]
[336874722,1725225040127,-500.0,0.00024657,2]
[336874723,1725225040138,-500.0,0.00024657,2]
[336874724,1725225040150,-500.0,0.00024657,2]
[336874725,1725225040159,-500.0,0.00024657,2]
[336874727,1725225040168,-500.0,0.00024657,2]
[336874729,1725225040177,-501.813284,0.00024657,2]
[336874731,1725225040187,-500.0,0.00024657,2]
[336874733,1725225040196,-500.0,0.00024657,2]
[336874735,1725225040208,-500.0,0.00024657,2]
[336874737,1725225040225,-500.0,0.00024657,2]
[336874740,1725225040238,-3865.41,0.00024657,2]
[336874742,1725225040249,-500.0,0.00024657,2]
[336874744,1725225040260,-500.0,0.00024657,2]
[336874746,1725225040271,-500.0,0.00024657,2]
[336874748,1725225040280,-500.0,0.00024657,2]
[336874750,1725225040289,-500.0,0.00024657,2]
[336874752,1725225040300,-500.0,0.00024657,2]
[336874754,1725225040309,-500.0,0.00024657,2]
[336874756,1725225040318,-500.0,0.00024657,2]
[336874758,1725225040328,-500.0,0.00024657,2]
[336874760,1725225040338,-500.0,0.00024657,2]
[336874762,1725225040347,-500.0,0.00024657,2]
[336874764,1725225040356,-500.0,0.00024657,2]
[336874766,1725225040366,-500.0,0.00024657,2]
[336874768,1725225040376,-500.0,0.00024657,2]
[336874770,1725225040386,-500.0,0.00024657,2]
[336874772,1725225040395,-1392.35,0.00024657,2]
[336874775,1725225040406,-500.0,0.00024657,2]
[336874777,1725225040416,-500.0,0.00024657,2]
[336874779,1725225040430,-500.0,0.00024657,2]
[336874781,1725225040439,-593.91,0.00024657,2]
[336874782,1725225040448,-500.0,0.00024657,2]
[336874785,1725225040459,-663.34,0.00024657,2]
[336874787,1725225040472,-500.0,0.00024657,2]
[336874789,1725225040482,-500.0,0.00024657,2]
[336874791,1725225040493,-500.0,0.00024657,2]
[336874793,1725225040505,-500.0,0.00024657,2]
[336874795,1725225040516,-826.53,0.00024657,2]
[336874797,1725225040527,-500.0,0.00024657,2]
[336874799,1725225040537,-500.0,0.00024657,2]
[336874801,1725225040547,-500.0,0.00024657,2]
[336874803,1725225040558,-664.89,0.00024657,2]
[336874805,1725225040568,-537.76895376,0.00024657,2]
[336874807,1725225040577,-500.0,0.00024657,2]
[336874810,1725225040589,-500.0,0.00024657,2]
[336874812,1725225040600,-500.0,0.00024657,2]
[336874814,1725225040613,-500.0,0.00024657,2]
[336874816,1725225040623,-473.71017254,0.00024657,2]
[336874818,1725225040633,-500.0,0.00024657,2]
[336874820,1725225040643,-500.0,0.00024657,2]
[336874822,1725225040653,-500.0,0.00024657,2]
[336874824,1725225040663,-500.0,0.00024657,2]
[336874826,1725225040672,-674.31,0.00024657,2]
[336874828,1725225040683,-500.0,0.00024657,2]
[336874830,1725225040695,-500.0,0.00024657,2]
[336874832,1725225040706,-500.0,0.00024657,2]
[336874833,1725225040718,-500.0,0.00024657,2]
[336874834,1725225040728,-500.0,0.00024657,2]
[336874835,1725225040738,-500.0,0.00024657,2]
[336874837,1725225040748,-152.27377715,0.00024657,2]
[336874839,1725225040758,-707.56,0.00024657,2]
[336874840,1725225040768,-168.19705482,0.00024657,2]
[336874842,1725225040787,-500.0,0.00024657,2]
[336874843,1725225040796,-500.0,0.00024657,2]
[336874844,1725225040806,-597.66,0.00024657,2]
[336874846,1725225040815,-500.0,0.00024657,2]
[336874848,1725225040825,-500.0,0.00024657,2]
[336874850,1725225040835,-500.0,0.00024657,2]
[336874852,1725225040846,-500.0,0.00024657,2]
[336874854,1725225040858,-639.98416241,0.00024657,2]
[336874855,1725225040868,-500.0,0.00024657,2]
[336874856,1725225040877,-500.0,0.00024657,2]
[336874858,1725225040887,-500.0,0.00024657,2]
[336874860,1725225040896,-1124.28,0.00024657,2]
[336874862,1725225040906,-500.0,0.00024657,2]
[336874864,1725225040916,-500.0,0.00024657,2]
[336874865,1725225040925,-500.0,0.00024657,2]
[336874867,1725225040935,-239.52337207,0.00024657,2]
[336874869,1725225040944,-500.0,0.00024657,2]
[336874871,1725225040953,-702.72,0.00024657,2]
[336874873,1725225040963,-500.0,0.00024657,2]
[336874874,1725225040972,-910.08,0.00024657,2]
[336874875,1725225040981,-500.0,0.00024657,2]
[336874876,1725225040990,-500.0,0.00024657,2]
[336874877,1725225041000,-788.15,0.00024657,2]
[336874878,1725225041010,-500.0,0.00024657,2]
[336874879,1725225041019,-500.0,0.00024657,2]
[336874880,1725225041029,-500.0,0.00024657,2]
[336874881,1725225041039,-203.86507882,0.00024657,2]
[336874882,1725225041048,-500.0,0.00024657,2]
[336874883,1725225041061,-503.61261762,0.00024657,2]
[336874884,1725225041070,-500.0,0.00024657,2]
[336874885,1725225041080,-503.44362046,0.00024657,2]
[336874886,1725225041089,-500.0,0.00024657,2]
[336874887,1725225041099,-501.51402623,0.00024657,2]
[336874888,1725225041109,-500.0,0.00024657,2]
[336874889,1725225041119,-500.0,0.00024657,2]
[336874890,1725225041129,-500.0,0.00024657,2]
[336874891,1725225041138,-500.0,0.00024657,2]
[336874892,1725225041149,-500.0,0.00024657,2]
[336874893,1725225041159,-500.0,0.00024657,2]
[336874894,1725225041168,-500.0,0.00024657,2]
[336874895,1725225041321,-500.0,0.00024657,2]
[336874896,1725225041330,-2056.18,0.00024657,2]
[336874897,1725225041340,-500.0,0.00024657,2]
[336874898,1725225041349,-1633.69,0.00024657,2]
[336874899,1725225041359,-500.0,0.00024657,2]
[336874900,1725225041369,-739.16,0.00024657,2]
[336874901,1725225041378,-500.0,0.00024657,2]
[336874902,1725225041389,-500.0,0.00024657,2]
[336874903,1725225041398,-522.73356696,0.00024657,2]
[336874904,1725225041407,-500.0,0.00024657,2]
[336874905,1725225041419,-181.06408415,0.00024657,2]
[336874906,1725225041433,-502.45607847,0.00024657,2]
[336874907,1725225041442,-500.0,0.00024657,2]
[336874908,1725225041452,-500.0,0.00024657,2]
[336874909,1725225041463,-500.0,0.00024657,2]
[336874910,1725225041474,-500.0,0.00024657,2]
[336874911,1725225041483,-500.0,0.00024657,2]
[336874912,1725225041492,-500.0,0.00024657,2]
[336874913,1725225041504,-500.0,0.00024657,2]
[336874914,1725225041514,-500.0,0.00024657,2]
[336874915,1725225041524,-589.75940358,0.00024657,2]
[336874916,1725225041535,-525.47670986,0.00024657,2]
[336874917,1725225041546,-500.0,0.00024657,2]
[336874918,1725225041556,-500.0,0.00024657,2]
[336874919,1725225041566,-1326.88,0.00024657,2]
[336874920,1725225041576,-500.0,0.00024657,2]
[336874921,1725225041586,-500.0,0.00024657,2]
[336874922,1725225041596,-500.0,0.00024657,2]
[336874923,1725225041606,-500.0,0.00024657,2]
[336874924,1725225041616,-2208.97,0.00024657,2]
[336874925,1725225041626,-885.85,0.00024657,2]
[336874926,1725225041636,-500.0,0.00024657,2]
[336874927,1725225041648,-1018.99,0.00024657,2]
[336874928,1725225041660,-500.0,0.00024657,2]
[336874929,1725225041669,-584.28633893,0.00024657,2]
[336874930,1725225041679,-629.45940246,0.00024657,2]
[336874931,1725225041688,-500.0,0.00024657,2]
[336874932,1725225041699,-500.0,0.00024657,2]
[336874933,1725225041709,-500.0,0.00024657,2]
[336874934,1725225041718,-678.45,0.00024657,2]
[336874935,1725225041728,-500.0,0.00024657,2]
[336874936,1725225041737,-821.97,0.00024657,2]
[336874937,1725225041746,-1329.98,0.00024657,2]
[336874938,1725225041755,-500.0,0.00024657,2]
[336874939,1725225041764,-500.0,0.00024657,2]
[336874940,1725225041773,-500.0,0.00024657,2]
[336874941,1725225041783,-500.0,0.00024657,2]
[336874942,1725225041791,-500.0,0.00024657,2]
[336874943,1725225041801,-958.36,0.00024657,2]
[336874944,1725225041810,-561.17,0.00024657,2]
[336874945,1725225041819,-500.0,0.00024657,2]
[336874946,1725225041829,-500.0,0.00024657,2]
[336874947,1725225041838,-500.0,0.00024657,2]
[336874948,1725225041849,-500.0,0.00024657,2]
[336874949,1725225041858,-444.65031992,0.00024657,2]
[336874950,1725225041866,-500.0,0.00024657,2]
[336874951,1725225041875,-500.0,0.00024657,2]
[336874952,1725225041885,-500.0,0.00024657,2]
[336874953,1725225041894,-500.0,0.00024657,2]
[336874954,1725225041903,-500.0,0.00024657,2]